bitfinex/quotes_BTCUSD_20251110
["timestamp","ask_amount","ask_price","bid_price","bid_amount"]
[1762735062918,0.24780092,105870.0,105860.0,0.02999998]
[1762735063107,0.20818092,105870.0,105860.0,0.01999999]
[1762735063315,0.27810478,105870.0,105860.0,0.01999999]
[1762735063518,0.72320249,105870.0,105860.0,0.01]
[1762735063649,0.18892877,105860.0,105850.0,0.02999998]
[1762735063850,0.25385877,105860.0,105850.0,0.02999998]
[1762735065645,0.003,105860.0,105850.0,0.29054906]
[1762735065979,0.004,105860.0,105850.0,0.29054906]
[1762735067072,0.004,105860.0,105850.0,0.9767388]
[1762735067928,0.004,105860.0,105850.0,0.61402109]
[1762735068490,0.001,105860.0,105850.0,0.61402109]
[1762735068895,0.002,105860.0,105850.0,0.61402109]
[1762735069886,0.01954,105880.0,105870.0,0.18891092]
[1762735070079,0.20843308,105880.0,105870.0,0.07271998]
[1762735070290,0.27189308,105880.0,105870.0,0.07271998]
[1762735071236,0.27389308,105880.0,105870.0,0.09161107]
[1762735071558,0.27389308,105880.0,105870.0,0.07271998]
[1762735071962,0.27789308,105880.0,105870.0,0.07271998]
[1762735072518,0.27798362,105880.0,105870.0,0.07271998]
[1762735074111,0.02563054,105880.0,105870.0,0.28052199]
[1762735074320,0.02563054,105880.0,105870.0,0.2616309]
[1762735074683,0.05186054,105880.0,105870.0,0.2616309]
[1762735074879,0.27398362,105880.0,105870.0,0.07271998]
[1762735075236,0.27598362,105880.0,105870.0,0.09161107]
[1762735075409,0.08709054,105880.0,105870.0,0.28052199]
[1762735075608,0.08709054,105880.0,105870.0,0.2616309]
[1762735075862,0.04786054,105880.0,105870.0,0.2616309]
[1762735076274,0.04886054,105880.0,105870.0,0.2616309]
[1762735076834,0.00309054,105880.0,105870.0,0.2616309]
[1762735077056,0.00309054,105880.0,105870.0,0.33323336]
[1762735077831,0.00109054,105880.0,105870.0,0.33323336]
[1762735078779,0.00109054,105880.0,105870.0,0.73213335]
[1762735079073,9.054e-05,105880.0,105870.0,0.73213335]
[1762735079818,9.054e-05,105880.0,105870.0,0.36941564]
[1762735080298,9.054e-05,105880.0,105870.0,0.73213335]
[1762735080899,9.054e-05,105880.0,105870.0,1.05513335]
[1762735081098,9.054e-05,105880.0,105870.0,1.64004835]
[1762735081310,1.895e-05,105880.0,105870.0,1.7539104]
[1762735081463,1.895e-05,105880.0,105870.0,2.10128214]
[1762735081668,1.895e-05,105880.0,105870.0,2.06976537]
[1762735081863,1.895e-05,105880.0,105870.0,2.05527537]
[1762735082300,1.895e-05,105880.0,105870.0,2.08679214]
[1762735082506,1.895e-05,105880.0,105870.0,1.10913268]
[1762735082675,1.895e-05,105880.0,105870.0,1.40501509]
[1762735082866,1.895e-05,105880.0,105870.0,1.48736037]
[1762735083264,1.895e-05,105880.0,105870.0,2.01578363]
[1762735083467,1.895e-05,105880.0,105870.0,1.94775237]
[1762735087411,1.895e-05,105880.0,105870.0,1.94728063]
[1762735087649,1.895e-05,105880.0,105870.0,1.97930881]
[1762735087815,1.895e-05,105880.0,105870.0,1.94775237]
[1762735087992,1.895e-05,105880.0,105870.0,1.94224239]
[1762735088170,1.895e-05,105880.0,105870.0,1.58503466]
[1762735088370,1.895e-05,105880.0,105870.0,1.94775237]
[1762735089750,1.895e-05,105880.0,105870.0,1.58503466]
[1762735089930,1.895e-05,105880.0,105870.0,1.94775237]
[1762735090142,1.895e-05,105880.0,105870.0,1.97930881]
[1762735090331,1.895e-05,105880.0,105870.0,1.97883707]
[1762735091207,0.00023446,105890.0,105880.0,0.88956406]
[1762735091398,0.00023446,105890.0,105880.0,1.29185804]
[1762735091596,0.00023446,105890.0,105880.0,1.31038796]
[1762735092217,0.00023446,105890.0,105880.0,1.28099894]
[1762735093235,0.00023446,105890.0,105880.0,0.91828123]
[1762735093447,0.00023446,105890.0,105880.0,1.28099894]
[1762735093664,0.00023446,105890.0,105880.0,1.8694265]
[1762735094109,0.00023446,105890.0,105880.0,1.89776382]
[1762735094317,0.00023446,105890.0,105880.0,1.90776382]
[1762735094961,0.00023446,105890.0,105880.0,1.91476382]
[1762735095180,0.00023446,105890.0,105880.0,1.80514782]
[1762735095432,0.00023446,105890.0,105880.0,1.24246382]
[1762735095653,0.00023446,105890.0,105880.0,0.64824026]
[1762735095864,0.00023446,105890.0,105880.0,0.55589498]
[1762735096080,0.00023446,105890.0,105880.0,1.05436567]
[1762735096301,0.00023446,105890.0,105880.0,1.07236567]
[1762735096735,0.00023446,105890.0,105880.0,1.38538325]
[1762735096920,0.00023446,105890.0,105880.0,1.10854795]
[1762735097386,0.00023446,105890.0,105880.0,0.61007726]
[1762735098000,0.00023446,105890.0,105880.0,0.61558724]
[1762735098254,0.00023446,105890.0,105880.0,1.43633897]
[1762735098681,0.00023446,105890.0,105880.0,1.51868425]
[1762735099110,0.00023446,105890.0,105880.0,1.51915623]
[1762735099323,0.00023446,105890.0,105880.0,1.51868425]
[1762735099973,0.00023446,105890.0,105880.0,1.15596654]
[1762735100196,0.00023446,105890.0,105880.0,1.51015623]
[1762735100412,0.00023446,105890.0,105880.0,1.53981194]
[1762735100612,0.00023446,105890.0,105880.0,1.68671194]
[1762735101244,0.04938,105930.0,105920.0,0.19433173]
[1762735101445,0.04938,105930.0,105920.0,0.03439215]
[1762735101446,0.27446771,105930.0,105920.0,0.03439215]
[1762735101644,0.29912771,105930.0,105920.0,0.2232139]
[1762735101849,0.11032379,105930.0,105920.0,0.20433173]
[1762735102066,0.29912771,105930.0,105920.0,0.20433173]
[1762735102407,0.29912771,105930.0,105920.0,0.00550998]
[1762735102616,0.29912771,105930.0,105920.0,0.01550998]
[1762735102810,0.30112771,105930.0,105920.0,0.01550998]
[1762735104254,0.11232379,105930.0,105920.0,0.20433173]
[1762735104404,0.07618379,105930.0,105920.0,0.20433173]
[1762735104591,0.30112771,105930.0,105920.0,0.01550998]
[1762735105397,0.34077019,105930.0,105920.0,0.01]
[1762735105623,0.30112771,105930.0,105920.0,0.01550998]
[1762735106244,0.26498771,105930.0,105920.0,0.2132139]
[1762735106419,0.26498771,105930.0,105920.0,0.03439215]
[1762735106634,0.26498771,105930.0,105920.0,0.20433173]
[1762735106829,0.30206515,105930.0,105920.0,0.20433173]
[1762735107299,0.11326123,105930.0,105920.0,0.20433173]
[1762735107504,0.11326123,105930.0,105920.0,0.22028329]
[1762735107709,0.30206515,105930.0,105920.0,0.20433173]
[1762735107914,0.11326123,105930.0,105920.0,0.20433173]
[1762735108563,0.07712123,105930.0,105920.0,0.20433173]
[1762735108828,0.03319123,105930.0,105920.0,0.19433173]
[1762735109060,0.05084123,105930.0,105920.0,0.01550998]
[1762735109241,0.32517495,105930.0,105920.0,0.01550998]
[1762735109868,0.29939515,105930.0,105920.0,0.01550998]
[1762735110279,0.26384515,105930.0,105920.0,0.01550998]
[1762735110453,0.29939515,105930.0,105920.0,0.00550998]
[1762735110659,0.03319123,105930.0,105920.0,0.00550998]
[1762735110868,0.22199515,105930.0,105920.0,0.27593419]
[1762735111073,0.03319123,105930.0,105920.0,0.27593419]
[1762735111441,0.03319123,105930.0,105920.0,0.27553434]
[1762735112284,0.03319123,105930.0,105920.0,0.52752339]
[1762735112715,0.22199515,105930.0,105920.0,0.52752339]
[1762735113081,0.03319123,105930.0,105920.0,0.52752339]
[1762735113758,0.03319123,105930.0,105920.0,0.49553434]
[1762735114302,0.22199515,105930.0,105920.0,0.49553434]
[1762735114732,0.23964515,105930.0,105920.0,0.49553434]
[1762735115113,0.05084123,105930.0,105920.0,0.49553434]
[1762735115308,0.23964515,105930.0,105920.0,0.49553434]
[1762735115562,0.26384515,105930.0,105920.0,0.49553434]
[1762735115757,0.03319123,105930.0,105920.0,0.49553434]
[1762735116499,0.05084123,105930.0,105920.0,0.81853434]
[1762735117220,0.26384515,105930.0,105920.0,0.81853434]
[1762735117637,0.05084123,105930.0,105920.0,0.81853434]
[1762735118045,0.07504123,105930.0,105920.0,0.81853434]
[1762735118537,0.03319123,105930.0,105920.0,0.81853434]
[1762735119656,0.29939515,105930.0,105920.0,0.54811013]
[1762735119780,0.03319123,105930.0,105920.0,0.81853434]
[1762735120727,0.26384515,105930.0,105920.0,0.81853434]
[1762735120954,0.26384515,105930.0,105920.0,1.05576059]
[1762735121141,0.03319123,105930.0,105920.0,1.30291114]
[1762735121343,0.03319123,105930.0,105920.0,1.06568489]
[1762735122630,0.03119123,105930.0,105920.0,1.06568489]
[1762735123159,0.04884123,105930.0,105920.0,1.04576059]
[1762735123292,0.04884123,105930.0,105920.0,1.05576059]
[1762735123797,0.26184515,105930.0,105920.0,0.81853434]
[1762735124005,0.07304123,105930.0,105920.0,0.81853434]
[1762735124206,0.07304123,105930.0,105920.0,1.05576059]
[1762735124430,0.04884123,105930.0,105920.0,1.05576059]
[1762735124624,0.03119123,105930.0,105920.0,1.05576059]
[1762735124844,0.03119123,105930.0,105920.0,1.29298684]
[1762735129251,0.03119123,105930.0,105920.0,1.05576059]
[1762735129683,0.03119123,105930.0,105920.0,1.43988684]
[1762735130913,0.03119123,105930.0,105920.0,1.70317512]
[1762735131510,0.03119123,105930.0,105920.0,1.52223212]
[1762735132154,0.03119123,105930.0,105920.0,1.74679112]
[1762735133538,0.03119123,105930.0,105920.0,1.7829734]
[1762735133783,0.03119123,105930.0,105920.0,0.67663769]
[1762735134094,0.10663123,105930.0,105920.0,0.73793188]
[1762735134269,0.07222123,105930.0,105920.0,1.04676059]
[1762735134458,0.04868123,105930.0,105920.0,1.04676059]
[1762735134835,0.23748515,105930.0,105920.0,0.85282871]
[1762735135034,0.23748515,105930.0,105920.0,1.04676059]
[1762735135760,0.57873063,105930.0,105920.0,0.22611013]
[1762735135994,0.57873063,105930.0,105920.0,0.221]
[1762735136174,0.34150438,105930.0,105920.0,0.22611013]
[1762735136960,0.34250438,105930.0,105920.0,0.22611013]
[1762735137367,0.29643515,105930.0,105920.0,0.22611013]
[1762735138306,0.5336614,105930.0,105920.0,0.22611013]
[1762735139034,0.29643515,105930.0,105920.0,0.22611013]
[1762735139477,0.07322123,105930.0,105920.0,0.65215813]
[1762735139858,0.04968123,105930.0,105920.0,0.65215813]
[1762735140481,0.03219123,105930.0,105920.0,0.65215813]
[1762735141106,0.03219123,105930.0,105920.0,0.88938438]
[1762735142120,0.03219123,105930.0,105920.0,1.21238438]
[1762735143415,0.03219123,105930.0,105920.0,1.29472966]
[1762735144641,0.03119123,105930.0,105920.0,1.29472966]
[1762735145354,0.03219123,105930.0,105920.0,1.29472966]
[1762735146696,0.07006123,105930.0,105920.0,1.29472966]
[1762735146895,0.07706735,105930.0,105920.0,0.63145541]
[1762735147130,0.07006123,105930.0,105920.0,0.97515813]
[1762735147344,0.04881123,105930.0,105920.0,0.73793188]
[1762735147462,0.04881123,105930.0,105920.0,0.97515813]
[1762735147666,0.03219123,105930.0,105920.0,0.97515813]
[1762735147973,0.03219123,105930.0,105920.0,1.29472966]
[1762735148381,0.03219123,105930.0,105920.0,1.21238438]
[1762735148593,0.22099515,105930.0,105920.0,0.97515813]
[1762735148766,0.03219123,105930.0,105920.0,0.97515813]
[1762735149274,0.03219123,105930.0,105920.0,1.21238438]
[1762735149488,0.03219123,105930.0,105920.0,1.29472966]
[1762735151270,0.03219123,105930.0,105920.0,1.2952017]
[1762735151827,0.03219123,105930.0,105920.0,1.05750341]
[1762735152028,0.03219123,105930.0,105920.0,1.29472966]
[1762735152866,0.03219123,105930.0,105920.0,3.33138398]
[1762735153276,0.03219123,105930.0,105920.0,3.2490387]
[1762735153691,0.03219123,105930.0,105920.0,2.89007914]
[1762735153906,0.03219123,105930.0,105920.0,3.36453164]
[1762735155500,0.03219123,105930.0,105920.0,3.80175789]
[1762735155715,0.01071333,105930.0,105920.0,3.63169694]
[1762735155993,0.01071333,105930.0,105920.0,3.47781164]
[1762735157044,0.00971333,105930.0,105920.0,3.71503789]
[1762735157256,0.00971333,105930.0,105920.0,3.91503789]
[1762735157451,0.00971333,105930.0,105920.0,3.94903789]
[1762735157766,0.00971333,105930.0,105920.0,3.51181164]
[1762735157902,0.00239235,105930.0,105920.0,3.51181164]
[1762735158263,0.00239235,105930.0,105920.0,3.42686245]
[1762735158457,0.00239235,105930.0,105920.0,1.47344148]
[1762735158632,0.00228235,105930.0,105920.0,1.35794854]
[1762735159433,0.00228235,105930.0,105920.0,1.35793675]
[1762735159842,0.00228235,105930.0,105920.0,3.27518723]
[1762735160047,0.00228235,105930.0,105920.0,3.27471519]
[1762735160203,0.00228235,105930.0,105920.0,3.54812372]
[1762735160407,0.00228235,105930.0,105920.0,3.42686245]
[1762735160678,0.00228235,105930.0,105920.0,3.42639041]
[1762735161297,0.00228235,105930.0,105920.0,3.31089747]
[1762735161590,0.00228235,105930.0,105920.0,3.74812372]
[1762735161883,0.00228235,105930.0,105920.0,3.74859576]
[1762735162884,0.00228235,105930.0,105920.0,3.51136951]
[1762735163454,0.00228235,105930.0,105920.0,3.74859576]
[1762735164223,0.00228235,105930.0,105920.0,3.94859576]
[1762735164431,0.11460049,105990.0,105980.0,0.20382498]
[1762735164626,0.11507991,105990.0,105980.0,0.66728726]
[1762735164827,0.11507991,105990.0,105980.0,0.86833123]
[1762735164968,0.11507991,105990.0,105980.0,0.63110498]
[1762735165372,0.11507991,105990.0,105980.0,0.89618293]
[1762735165613,0.11507991,105990.0,105980.0,0.67724972]
[1762735165860,0.15294991,105990.0,105980.0,0.56946498]
[1762735166047,0.15294991,105990.0,105980.0,0.55535485]
[1762735166243,0.13169991,105990.0,105980.0,0.56046498]
[1762735166444,0.11507991,105990.0,105980.0,0.56746498]
[1762735166644,0.11507991,105990.0,105980.0,0.8437306]
[1762735166860,0.11507991,105990.0,105980.0,0.91580434]
[1762735167429,0.13169991,105990.0,105980.0,0.64606744]
[1762735167656,0.15294991,105990.0,105980.0,0.45735259]
[1762735167934,0.15294991,105990.0,105980.0,0.09171259]
[1762735167935,0.37657695,105990.0,105980.0,0.09171259]
[1762735168170,0.37657695,105990.0,105980.0,0.015]
[1762735168424,0.37657695,105990.0,105980.0,0.02011013]
[1762735169201,0.37657695,105990.0,105980.0,0.01311013]
[1762735169364,0.37657695,105990.0,105980.0,0.01911013]
[1762735169574,0.37657695,105990.0,105980.0,0.007]
[1762735169764,0.37657695,105990.0,105980.0,0.00611013]
[1762735170040,0.37798204,105990.0,105980.0,0.00611013]
[1762735170367,0.37798204,105990.0,105980.0,0.001]
[1762735170569,0.116485,105990.0,105980.0,0.7870906]
[1762735171021,0.30518204,105990.0,105980.0,0.51782498]
[1762735171225,0.116485,105990.0,105980.0,0.51782498]
[1762735171382,0.32284204,105990.0,105980.0,0.51782498]
[1762735171582,0.116485,105990.0,105980.0,0.51782498]
[1762735172228,0.116485,105990.0,105980.0,0.58942744]
[1762735172626,0.30518204,105990.0,105980.0,0.58942744]
[1762735172822,0.134145,105990.0,105980.0,0.58942744]
[1762735173388,0.32284204,105990.0,105980.0,0.58942744]
[1762735173593,0.134145,105990.0,105980.0,0.58942744]
[1762735173793,0.32284204,105990.0,105980.0,0.40071259]
[1762735173998,0.134145,105990.0,105980.0,0.58942744]
[1762735174242,0.134145,105990.0,105980.0,0.80942744]
[1762735174439,0.116485,105990.0,105980.0,0.80942744]
[1762735175037,0.116485,105990.0,105980.0,1.17140009]
[1762735176861,0.34750204,105990.0,105980.0,0.62071259]
[1762735177226,0.34750204,105990.0,105980.0,0.80942744]
[1762735177845,0.116485,105990.0,105980.0,1.17140009]
[1762735178179,0.116485,105990.0,105980.0,0.80942744]
[1762735178426,0.116485,105990.0,105980.0,1.17140009]
[1762735179037,0.116485,105990.0,105980.0,0.81642744]
[1762735179253,0.116485,105990.0,105980.0,3.18440009]
[1762735179411,0.116485,105990.0,105980.0,1.22105365]
[1762735180250,0.116485,105990.0,105980.0,1.25109232]
[1762735180454,0.116485,105990.0,105980.0,1.22105365]
[1762735181664,0.116485,105990.0,105980.0,1.21405365]
[1762735182013,0.116485,105990.0,105980.0,1.22705365]
[1762735182339,0.116485,105990.0,105980.0,1.24105365]
[1762735182530,0.10115112,105990.0,105980.0,1.24105365]
[1762735182876,0.10115112,105990.0,105980.0,1.23594352]
[1762735183344,0.10115112,105990.0,105980.0,1.20487137]
[1762735183756,0.10115112,105990.0,105980.0,0.88506744]
[1762735183959,0.10115112,105990.0,105980.0,1.24704009]
[1762735184299,0.10115112,105990.0,105980.0,1.24192996]
[1762735184475,0.10115112,105990.0,105980.0,1.24704009]
[1762735185424,0.10115112,105990.0,105980.0,1.39394009]
[1762735185792,0.10115112,105990.0,105980.0,1.38882996]
[1762735186000,0.10115112,105990.0,105980.0,1.39441137]
[1762735186625,0.10115112,105990.0,105980.0,1.24751137]
[1762735186873,0.10115112,105990.0,105980.0,1.122424]
[1762735187441,0.10115112,105990.0,105980.0,1.11731387]
[1762735187644,0.10115112,105990.0,105980.0,1.122424]
[1762735187843,0.11903112,105990.0,105980.0,0.79895272]
[1762735188103,0.32975816,105990.0,105980.0,0.37335259]
[1762735188307,0.14106112,105990.0,105980.0,0.79895272]
[1762735188447,0.32975816,105990.0,105980.0,1.12195272]
[1762735188885,0.32975816,105990.0,105980.0,1.10795272]
[1762735188886,0.10115112,105990.0,105980.0,1.10795272]
[1762735189409,0.10115112,105990.0,105980.0,1.08895272]
[1762735189757,0.10115112,105990.0,105980.0,1.10395272]
[1762735191137,0.10115112,105990.0,105980.0,1.12495272]
[1762735192268,0.10115112,105990.0,105980.0,1.10395272]
[1762735192504,0.08581598,105990.0,105980.0,1.08895272]
[1762735192703,0.08581598,105990.0,105980.0,1.10995272]
[1762735192861,0.08581598,105990.0,105980.0,1.12495272]
[1762735193073,0.06434856,105990.0,105980.0,1.16160628]
[1762735193488,0.06434856,105990.0,105980.0,3.39849156]
[1762735193722,0.06434856,105990.0,105980.0,3.27440723]
[1762735193921,0.06434856,105990.0,105980.0,3.30272045]
[1762735194131,0.06434856,105990.0,105980.0,1.27247236]
[1762735195003,0.06434856,105990.0,105980.0,1.30272045]
[1762735195589,0.06434856,105990.0,105980.0,1.53960573]
[1762735196689,0.06434856,105990.0,105980.0,1.51129251]
[1762735196899,0.06434856,105990.0,105980.0,1.53960573]
[1762735197579,0.06434856,105990.0,105980.0,3.53960573]
[1762735197813,31.2162505,106000.0,105990.0,2.18869704]
[1762735198019,31.21639423,106000.0,105990.0,3.35160627]
[1762735198226,31.21639423,106000.0,105990.0,3.1688089]
[1762735198432,31.21639423,106000.0,105990.0,1.13662669]
[1762735198608,31.21639423,106000.0,105990.0,1.08614485]
[1762735198991,31.21639423,106000.0,105990.0,1.10014485]
[1762735199319,31.21639423,106000.0,105990.0,1.19669877]
[1762735199497,31.21639423,106000.0,105990.0,1.11914485]
[1762735199705,31.21639423,106000.0,105990.0,1.31914485]
[1762735199951,31.21639423,106000.0,105990.0,1.4018089]
[1762735200354,31.21639423,106000.0,105990.0,1.1878089]
[1762735200528,31.21639423,106000.0,105990.0,1.2028089]
[1762735200723,31.21639423,106000.0,105990.0,1.3838089]
[1762735200929,31.21639423,106000.0,105990.0,1.3688089]
[1762735201195,31.21639423,106000.0,105990.0,0.68385613]
[1762735201310,31.21639423,106000.0,105990.0,1.17262669]
[1762735201513,31.21639423,106000.0,105990.0,1.15162669]
[1762735201941,31.21639423,106000.0,105990.0,1.2048089]
[1762735202149,31.21639423,106000.0,105990.0,0.64837429]
[1762735202346,31.21639423,106000.0,105990.0,0.85307736]
[1762735202576,31.21639423,106000.0,105990.0,1.08996264]
[1762735203101,31.21639423,106000.0,105990.0,1.18394924]
[1762735203312,31.21639423,106000.0,105990.0,1.18347773]
[1762735203482,31.21662833,106000.0,105990.0,1.18347773]
[1762735204538,31.21662833,106000.0,105990.0,3.21966001]
[1762735204772,30.76402733,106000.0,105990.0,2.72513867]
[1762735204949,30.76402733,106000.0,105990.0,0.04211013]
[1762735204950,31.04667866,106000.0,105990.0,0.04211013]
[1762735205177,31.04667866,106000.0,105990.0,0.04111013]
[1762735205178,30.79768733,106000.0,105990.0,0.04111013]
[1762735205321,30.95270657,106000.0,105990.0,0.02011013]
[1762735205518,30.76402733,106000.0,105990.0,0.32859787]
[1762735205719,30.71628052,106000.0,105990.0,0.35359787]
[1762735205923,30.44898901,106000.0,105990.0,0.86529491]
[1762735206145,30.13523716,106000.0,105990.0,1.15766969]
[1762735206376,29.98959644,106000.0,105990.0,1.15766969]
[1762735206573,29.98959644,106000.0,105990.0,1.13196669]
[1762735206574,29.87273336,106000.0,105990.0,1.13196669]
[1762735206784,29.60940525,106000.0,105990.0,1.56592767]
[1762735206954,29.60940525,106000.0,105990.0,1.38778614]
[1762735207159,29.60940525,106000.0,105990.0,1.15382516]
[1762735207364,29.60940525,106000.0,105990.0,1.15790086]
[1762735207567,29.79808449,106000.0,105990.0,0.56250594]
[1762735207766,29.79808449,106000.0,105990.0,0.51811013]
[1762735208175,29.79808449,106000.0,105990.0,0.21211013]
[1762735208377,29.79808449,106000.0,105990.0,0.19511013]
[1762735208579,29.79808449,106000.0,105990.0,0.23803443]
[1762735208764,29.79808449,106000.0,105990.0,0.21811013]
[1762735208973,29.83174449,106000.0,105990.0,0.21811013]
[1762735209173,29.60940525,106000.0,105990.0,0.40680717]
[1762735209386,29.60940525,106000.0,105990.0,1.11169197]
[1762735209594,29.60940525,106000.0,105990.0,0.74973147]
[1762735209779,29.60940525,106000.0,105990.0,0.74680717]
[1762735209978,29.60940525,106000.0,105990.0,0.74373147]
[1762735210184,29.60940525,106000.0,105990.0,0.76204415]
[1762735210380,29.60940525,106000.0,105990.0,1.16100465]
[1762735210579,29.60940525,106000.0,105990.0,1.14108035]
[1762735210805,29.60940525,106000.0,105990.0,1.16100465]
[1762735212055,29.60940525,106000.0,105990.0,3.39718693]
[1762735212256,29.60940525,106000.0,105990.0,3.03522643]
[1762735212472,29.60940525,106000.0,105990.0,1.19718693]
[1762735212711,29.60940525,106000.0,105990.0,0.77523863]
[1762735212883,29.60940525,106000.0,105990.0,0.74380717]
[1762735213088,29.60940525,106000.0,105990.0,0.76373147]
[1762735213998,29.60940525,106000.0,105990.0,1.12569197]
[1762735214514,29.60940525,106000.0,105990.0,1.39330571]
[1762735214713,29.60940525,106000.0,105990.0,1.41206158]
[1762735215279,29.60940525,106000.0,105990.0,1.61206158]
[1762735215872,29.16447724,106000.0,105990.0,1.61206158]
[1762735216094,28.83262356,106000.0,105990.0,1.61206158]
[1762735216921,28.38503483,106000.0,105990.0,3.61206158]
[1762735217085,28.38503483,106000.0,105990.0,3.59213728]
[1762735217285,28.38503483,106000.0,105990.0,3.61206158]
[1762735217740,28.38503483,106000.0,105990.0,3.64037186]
[1762735219148,28.38503483,106000.0,105990.0,3.6089404]
[1762735219950,28.38503483,106000.0,105990.0,3.64028853]
[1762735220385,28.38503483,106000.0,105990.0,3.6351784]
[1762735220543,28.38503483,106000.0,105990.0,3.6089404]
[1762735220947,28.38503483,106000.0,105990.0,3.64030851]
[1762735221148,28.38503483,106000.0,105990.0,3.70640577]
[1762735221349,28.38503483,106000.0,105990.0,3.67503766]
[1762735221811,28.38503483,106000.0,105990.0,0.5056603]
[1762735221938,28.38503483,106000.0,105990.0,0.44073147]
[1762735222136,28.38503483,106000.0,105990.0,0.75862134]
[1762735222341,28.38503483,106000.0,105990.0,0.44073147]
[1762735222568,28.38503483,106000.0,105990.0,0.80269197]
[1762735222790,28.38503483,106000.0,105990.0,2.83887425]
[1762735222972,28.38503483,106000.0,105990.0,3.22797151]
[1762735223188,28.38503483,106000.0,105990.0,3.457923]
[1762735223907,28.38503483,106000.0,105990.0,3.4379987]
[1762735224042,28.38503483,106000.0,105990.0,3.47620009]
[1762735224611,28.38503483,106000.0,105990.0,3.45627579]
[1762735224782,28.38503483,106000.0,105990.0,3.47620009]
[1762735224985,27.95636415,106000.0,105990.0,3.45627579]
[1762735225153,27.95636415,106000.0,105990.0,3.47620009]
[1762735225755,27.95636415,106000.0,105990.0,3.41010283]
[1762735225978,27.95636415,106000.0,105990.0,3.47620051]
[1762735226154,27.95636415,106000.0,105990.0,3.54315134]
[1762735226373,27.95636415,106000.0,105990.0,3.57310283]
[1762735226576,27.95636415,106000.0,105990.0,3.49835134]
[1762735226775,27.95636415,106000.0,105990.0,3.50837853]
[1762735226997,27.95636415,106000.0,105990.0,3.52830283]
[1762735227331,27.95636415,106000.0,105990.0,3.49835134]
[1762735228453,27.95636415,106000.0,105990.0,3.13639084]
[1762735228680,27.95636415,106000.0,105990.0,3.49835134]
[1762735228883,27.95636415,106000.0,105990.0,3.29882285]
[1762735229039,27.95636415,106000.0,105990.0,3.29835134]
[1762735229623,27.95636415,106000.0,105990.0,3.49835134]
[1762735231562,27.95636415,106000.0,105990.0,3.52666154]
[1762735232926,27.95636415,106000.0,105990.0,3.4337751]
[1762735233138,27.95636415,106000.0,105990.0,3.46372659]
[1762735233374,27.95636415,106000.0,105990.0,3.4337751]
[1762735233483,27.95636415,106000.0,105990.0,3.42866497]
[1762735234673,27.95636415,106000.0,105990.0,3.0908508]
[1762735234874,27.95636415,106000.0,105990.0,2.48157007]
[1762735235225,27.82899689,106000.0,105990.0,3.00755282]
[1762735235437,27.82899689,106000.0,105990.0,3.00244269]
[1762735235603,27.82899689,106000.0,105990.0,3.03750431]
[1762735236566,27.82899689,106000.0,105990.0,3.18919411]
[1762735236768,27.82899689,106000.0,105990.0,3.16926981]
[1762735237019,27.82899689,106000.0,105990.0,3.15099272]
[1762735237266,27.82899689,106000.0,105990.0,3.17091702]
[1762735237475,27.82899689,106000.0,105990.0,2.90184296]
[1762735237645,27.82899689,106000.0,105990.0,3.17091702]
[1762735238005,27.82899689,106000.0,105990.0,3.16580689]
[1762735238207,27.82899689,106000.0,105990.0,0.75362134]
[1762735238411,27.82899689,106000.0,105990.0,1.09394185]
[1762735238739,27.82899689,106000.0,105990.0,0.81975766]
[1762735239077,27.82899689,106000.0,105990.0,0.82486779]
[1762735240055,27.82899689,106000.0,105990.0,0.81975766]
[1762735240254,28.01767613,106000.0,105990.0,0.63617075]
[1762735240457,28.01767613,106000.0,105990.0,0.80786779]
[1762735240629,28.06840613,106000.0,105990.0,0.5639243]
[1762735240844,27.87972689,106000.0,105990.0,0.73780717]
[1762735241051,27.87972689,106000.0,105990.0,0.73273147]
[1762735241247,28.06840613,106000.0,105990.0,0.75373147]
[1762735241673,28.06840613,106000.0,105990.0,0.5599243]
[1762735241858,28.06840613,106000.0,105990.0,0.06203443]
[1762735242455,28.01767613,106000.0,105990.0,0.23080717]
[1762735242674,28.01767613,106000.0,105990.0,0.06203443]
[1762735242874,28.06840613,106000.0,105990.0,0.06203443]
[1762735243087,28.06840613,106000.0,105990.0,0.25073147]
[1762735243270,27.87972689,106000.0,105990.0,0.25073147]
[1762735243782,27.82899689,106000.0,105990.0,0.25073147]
[1762735244185,27.82899689,106000.0,105990.0,0.49988123]
[1762735244358,27.82899689,106000.0,105990.0,0.51980553]
[1762735245040,27.82899689,106000.0,105990.0,0.25073147]
[1762735245269,27.82899689,106000.0,105990.0,0.90894185]
[1762735246662,27.82899689,106000.0,105990.0,0.63986779]
[1762735246786,27.82899689,106000.0,105990.0,0.90894185]
[1762735246985,27.82899689,106000.0,105990.0,1.08894185]
[1762735248704,27.82899689,106000.0,105990.0,1.06901755]
[1762735248911,27.82899689,106000.0,105990.0,1.08894185]
[1762735249327,27.82899689,106000.0,105990.0,1.06901755]
[1762735249550,27.82899689,106000.0,105990.0,1.08894185]
[1762735252606,27.82899689,106000.0,105990.0,1.06901755]
[1762735252808,27.82899689,106000.0,105990.0,1.08894185]
[1762735253107,27.82899689,106000.0,105990.0,1.05673577]
[1762735253852,28.01767613,106000.0,105990.0,0.63117075]
[1762735254225,27.87791689,106000.0,105990.0,0.71381147]
[1762735254355,27.82899689,106000.0,105990.0,0.73373577]
[1762735257450,27.82899689,106000.0,105990.0,0.49686779]
[1762735257651,27.82899689,106000.0,105990.0,0.73373577]
[1762735257953,27.82899689,106000.0,105990.0,1.05673577]
[1762735258367,27.82899689,106000.0,105990.0,1.03681147]
[1762735258520,27.82899689,106000.0,105990.0,1.05673577]
[1762735259042,28.06731613,106000.0,105990.0,1.05673577]
[1762735259205,28.06731613,106000.0,105990.0,0.79994349]
[1762735259567,28.01767613,106000.0,105990.0,1.05673577]
[1762735259733,27.82899689,106000.0,105990.0,1.05673577]
[1762735259936,28.01767613,106000.0,105990.0,1.05673577]
[1762735260120,27.82899689,106000.0,105990.0,1.05673577]
[1762735260321,27.82899689,106000.0,105990.0,1.03681147]
[1762735260728,27.82899689,106000.0,105990.0,0.79994349]
[1762735260934,27.82899689,106000.0,105990.0,1.05673577]
[1762735262423,27.82899689,106000.0,105990.0,3.52980573]
[1762735262685,27.82899689,106000.0,105990.0,3.31716916]
[1762735262912,27.70163246,106000.0,105990.0,3.30944578]
[1762735263125,27.70163246,106000.0,105990.0,0.75373147]
[1762735263340,27.70163246,106000.0,105990.0,0.96959945]
[1762735263548,27.70163246,106000.0,105990.0,3.67123714]
[1762735263739,27.70163246,106000.0,105990.0,3.08718945]
[1762735263915,27.70163246,106000.0,105990.0,1.32798173]
[1762735264339,27.70163246,106000.0,105990.0,1.34498173]
[1762735264738,27.70163246,106000.0,105990.0,1.42764578]
[1762735264920,27.70163246,106000.0,105990.0,3.37521274]
[1762735265122,27.2297364,106000.0,105990.0,3.67482047]
[1762735265327,27.2297364,106000.0,105990.0,3.59215642]
[1762735265548,27.2297364,106000.0,105990.0,3.79215642]
[1762735265769,27.2297364,106000.0,105990.0,3.33834476]
[1762735266151,27.2297364,106000.0,105990.0,3.57010261]
[1762735266327,27.2297364,106000.0,105990.0,3.84039092]
[1762735266769,27.2297364,106000.0,105990.0,3.81015991]
[1762735266770,26.80423135,106000.0,105990.0,3.81015991]